bitfinex/quotes_SOLUSD_20250317
["timestamp","ask_amount","ask_price","bid_price","bid_amount"]
[1742219414033,8.20432314,127.3,127.25,0.03]
[1742219414034,28.9748565,127.26,127.25,0.03]
[1742219414725,55.8088285,127.26,127.25,0.03]
[1742219415033,20.0,127.23,127.18,75.77]
[1742219415337,28.9748565,127.22,127.17,36.55373336]
[1742219415726,28.69053336,127.21,127.16,28.69053336]
[1742219415932,28.69053336,127.18,127.13,7.8655]
[1742219416132,28.69053336,127.18,127.09,7.8678]
[1742219416133,28.69053336,127.16,127.09,7.8678]
[1742219416330,28.69053336,127.15,127.1,28.69053336]
[1742219416525,34.88813336,127.19,127.11,28.69053336]
[1742219416526,6.1976,127.19,127.11,28.69053336]
[1742219416724,28.69053336,127.18,127.13,28.69053336]
[1742219416923,28.83269493,127.19,127.09,175.1288]
[1742219417142,8.16216157,127.2,127.16,28.69053336]
[1742219417438,28.69053336,127.19,127.14,28.69053336]
[1742219417638,207.8,127.22,127.16,28.69053336]
[1742219417827,207.8,127.22,127.18,28.69053336]
[1742219418028,28.69053336,127.25,127.2,28.69053336]
[1742219418824,28.69053336,127.26,127.21,28.69053336]
[1742219419024,28.69053336,127.27,127.21,28.69053336]
[1742219419228,251.1074565,127.28,127.22,28.69053336]
[1742219419556,28.69053336,127.3,127.25,28.69053336]
[1742219419737,28.69053336,127.31,127.25,28.69053336]
[1742219420441,28.69053336,127.3,127.25,28.69053336]
[1742219420633,28.9748565,127.31,127.26,7.8579]
[1742219420947,28.69053336,127.3,127.26,7.8579]
[1742219421233,28.69053336,127.29,127.25,7.8583]
[1742219422050,14.71636157,127.32,127.25,7.8583]
[1742219422226,0.28432314,127.28,127.25,7.8583]
[1742219422429,28.69053336,127.28,127.25,7.8583]
[1742219422831,28.69053336,127.28,127.23,27.5089]
[1742219423033,28.69053336,127.28,127.23,56.19943336]
[1742219423639,28.69053336,127.27,127.23,7.8597]
[1742219423940,28.69053336,127.26,127.22,7.8601]
[1742219424132,48.83269493,127.27,127.22,36.55063336]
[1742219424331,20.14216157,127.27,127.22,56.20153336]
[1742219424540,0.20516157,127.3,127.24,28.69053336]
[1742219424843,48.9748565,127.27,127.24,7.8591]
[1742219425040,28.69053336,127.26,127.21,36.55153336]
[1742219425347,28.69053336,127.26,127.21,7.861]
[1742219425638,28.69053336,127.25,127.21,7.861]
[1742219425837,0.14216157,127.25,127.21,36.55153336]
[1742219426040,20.14216157,127.26,127.21,56.20403336]
[1742219426345,28.69053336,127.25,127.21,7.861]
[1742219426741,20.14216157,127.26,127.21,7.861]
[1742219426926,28.69053336,127.25,127.21,7.861]
[1742219427323,20.0,127.26,127.22,28.69053336]
[1742219427942,20.0,127.27,127.21,27.5135]
[1742219428244,48.69053336,127.27,127.22,28.69053336]
[1742219428642,0.14216157,127.27,127.22,28.69053336]
[1742219428825,28.83269493,127.27,127.22,36.55023336]
[1742219429029,20.0,127.28,127.23,28.69053336]
[1742219429229,0.20516157,127.3,127.26,28.69053336]
[1742219429230,0.063,127.3,127.26,28.69053336]
[1742219429537,0.063,127.3,127.27,28.69053336]
[1742219429728,0.063,127.3,127.28,28.69053336]
[1742219429930,0.063,127.3,127.29,28.69053336]
[1742219430552,0.063,127.3,127.28,8.12]
[1742219430847,0.063,127.3,127.26,36.54843336]
[1742219431350,0.063,127.3,127.29,28.69053336]
[1742219432340,0.063,127.3,127.29,36.83053336]
[1742219433132,0.063,127.3,127.29,44.68653336]
[1742219433339,28.9748565,127.39,127.29,140.09663336]
[1742219433544,28.9748565,127.39,127.33,28.69053336]
[1742219433738,28.69053336,127.37,127.32,28.69053336]
[1742219433940,28.69053336,127.34,127.29,104.46053336]
[1742219434146,48.69053336,127.33,127.28,36.54693336]
[1742219434431,20.0,127.33,127.29,28.69053336]
[1742219435040,20.0,127.33,127.29,36.54633336]
[1742219435436,20.0,127.33,127.29,28.69053336]
[1742219435637,28.69053336,127.31,127.26,75.77]
[1742219435939,28.69053336,127.3,127.25,28.69053336]
[1742219436335,0.14216157,127.31,127.24,28.69053336]
[1742219436537,20.0,127.28,127.22,75.77]
[1742219436731,20.0,127.26,127.19,63.8]
[1742219436935,20.0,127.26,127.18,16.0426]
[1742219436936,28.69053336,127.23,127.18,36.87053336]
[1742219437137,8.14332314,127.25,127.18,16.0428]
[1742219437342,56.8338565,127.25,127.19,28.69053336]
[1742219437547,28.69053336,127.24,127.19,28.69053336]
[1742219437966,56.8338565,127.25,127.19,28.69053336]
[1742219438438,0.14216157,127.27,127.24,73.49787508]
[1742219438854,44.72733336,127.28,127.24,73.49787508]
[1742219439038,0.28432314,127.28,127.24,73.49787508]
[1742219439247,7.8556,127.3,127.25,28.69053336]
[1742219439454,36.54613336,127.3,127.25,28.69053336]
[1742219439654,28.69053336,127.28,127.24,73.49787508]
[1742219439842,28.69053336,127.27,127.24,73.49787508]
[1742219440450,20.0,127.28,127.24,102.18840844]
[1742219440643,0.14216157,127.3,127.24,73.49787508]
[1742219440644,20.0,127.27,127.24,73.49787508]
[1742219440848,20.0,127.27,127.24,102.18840844]
[1742219441359,28.69053336,127.25,127.24,73.49787508]
[1742219441564,47.62450536,127.25,127.24,73.49787508]
[1742219441858,0.28432314,127.24,127.23,97.99716677]
[1742219442098,47.9088285,127.24,127.22,122.49645847]
[1742219442359,47.9088285,127.24,127.15,7.8946]
[1742219442360,20.28432314,127.2,127.15,7.8946]
[1742219442657,28.69053336,127.19,127.15,0.03]
[1742219442842,28.69053336,127.18,127.15,0.03]
[1742219443037,28.69053336,127.19,127.15,0.03]
[1742219443638,37.69481712,127.17,127.15,0.03]
[1742219444443,37.69481712,127.17,127.16,28.69053336]
[1742219445054,37.69481712,127.17,127.16,104.46053336]
[1742219445254,21.5398955,127.17,127.16,104.46053336]
[1742219445969,12.2026105,127.26,127.18,27.5199]
[1742219446186,12.2026105,127.26,127.25,28.69053336]
[1742219446659,12.2026105,127.26,127.24,8.26]
[1742219446846,12.2026105,127.26,127.25,28.69053336]
[1742219447049,0.28432314,127.32,127.25,28.69053336]
[1742219447050,28.69053336,127.32,127.25,28.69053336]
[1742219447260,208.003,127.33,127.29,42.98180536]
[1742219447666,0.063,127.33,127.29,42.98180536]
[1742219447850,0.063,127.33,127.3,42.98180536]
[1742219448475,0.063,127.33,127.29,50.83780536]
[1742219448774,0.063,127.33,127.31,42.98180536]
[1742219449368,0.063,127.33,127.32,42.98180536]
[1742219450177,0.063,127.33,127.32,50.83600536]
[1742219450556,0.063,127.33,127.3,8.28]
[1742219450876,0.063,127.33,127.28,7.856]
[1742219451082,0.063,127.33,127.3,42.98180536]
[1742219451381,0.063,127.33,127.31,42.98180536]
[1742219451587,0.063,127.33,127.32,42.98180536]
[1742219452271,0.063,127.33,127.32,50.83600536]
[1742219452772,0.063,127.33,127.31,134.88650536]
[1742219452975,0.063,127.33,127.32,42.98180536]
[1742219454183,0.063,127.33,127.32,50.83600536]
[1742219454697,0.063,127.41,127.34,75.77]
[1742219454884,0.063,127.41,127.39,42.98180536]
[1742219455075,0.063,127.41,127.35,8.3]
[1742219455076,0.063,127.41,127.36,42.98180536]
[1742219455277,50.89340536,127.41,127.36,42.98180536]
[1742219455479,42.98180536,127.4,127.35,127.05180536]
[1742219455697,42.98180536,127.39,127.34,42.98180536]
[1742219456782,50.83180536,127.39,127.34,42.98180536]
[1742219457311,42.98180536,127.38,127.33,118.75180536]
[1742219457491,42.98180536,127.37,127.33,75.77]
[1742219457878,8.13432314,127.39,127.33,118.75180536]
[1742219458179,50.97346693,127.4,127.35,42.98180536]
[1742219458591,50.97346693,127.4,127.34,50.83460536]
[1742219458978,42.98180536,127.39,127.34,42.98180536]
[1742219459184,42.98180536,127.38,127.33,118.75180536]
[1742219459379,42.98180536,127.36,127.32,8.3]
[1742219459586,42.98180536,127.35,127.3,118.75180536]
[1742219459796,42.98180536,127.35,127.3,75.77]
[1742219460099,42.98180536,127.35,127.3,126.60710536]
[1742219460397,42.98180536,127.32,127.26,84.05]
[1742219460599,42.98180536,127.32,127.27,42.98180536]
[1742219460992,20.0,127.32,127.29,42.98180536]
[1742219461378,50.97626693,127.35,127.29,42.98180536]
[1742219461579,0.28432314,127.35,127.3,42.98180536]
[1742219461785,42.98180536,127.36,127.31,42.98180536]
[1742219462302,51.24180536,127.37,127.32,50.83600536]
[1742219462500,0.28432314,127.39,127.34,42.98180536]
[1742219462688,42.98180536,127.38,127.32,7.8542]
[1742219462887,42.98180536,127.37,127.32,75.77]
[1742219463280,0.14216157,127.35,127.29,91.9058]
[1742219463505,42.98180536,127.34,127.29,134.88780536]
[1742219463703,42.98180536,127.34,127.29,134.88760536]
[1742219463888,8.28,127.36,127.31,42.98180536]
[1742219464095,70.45430536,127.4,127.34,42.98180536]
[1742219464096,0.28432314,127.39,127.34,42.98180536]
[1742219464291,0.28432314,127.39,127.31,75.77]
[1742219464292,42.98180536,127.4,127.35,50.83410536]
[1742219464623,7.9119,127.41,127.35,50.83410536]
[1742219464624,0.063,127.41,127.39,42.98180536]
[1742219465880,0.063,127.41,127.39,80.8]
[1742219466120,0.063,127.41,127.4,42.98180536]
[1742219466287,0.063,127.41,127.4,50.83100536]
[1742219466598,0.063,127.41,127.39,88.6496]
[1742219466800,0.063,127.41,127.4,42.98180536]
[1742219467604,0.063,127.41,127.4,50.83100536]
[1742219468084,0.063,127.41,127.4,42.98180536]
[1742219468986,0.063,127.41,127.4,50.83100536]
[1742219469186,0.063,127.41,127.4,36.43884221]
[1742219470099,0.063,127.41,127.39,117.64964221]
[1742219470700,0.063,127.41,127.39,8.26]
[1742219470906,0.063,127.41,127.38,36.82964221]
[1742219471204,0.063,127.41,127.39,28.58964221]
[1742219471392,0.063,127.41,127.4,28.58964221]
[1742219471791,0.063,127.41,127.4,36.43884221]
[1742219472094,0.063,127.41,127.4,8.24]
[1742219473205,0.063,127.41,127.4,44.67884221]
[1742219473703,0.063,127.41,127.4,8.24]
[1742219474096,0.063,127.41,127.39,28.58964221]
[1742219474298,0.063,127.41,127.4,28.58964221]
[1742219475014,0.063,127.41,127.4,57.17928442]
[1742219475383,0.063,127.41,127.4,137.97928442]
[1742219475607,0.063,127.41,127.4,109.38964221]
[1742219475903,0.063,127.41,127.4,117.23884221]
[1742219476310,0.063,127.43,127.4,167.02086659]
[1742219476513,0.063,127.43,127.42,28.58964221]
[1742219476697,0.063,127.43,127.42,109.38964221]
[1742219477303,0.063,127.46,127.42,110.95841339]
[1742219477485,0.063,127.46,127.45,28.58964221]
[1742219477789,0.063,127.46,127.45,117.60964221]
[1742219477986,0.063,127.46,127.45,125.45584221]
[1742219478401,0.0001,127.49,127.45,145.07134221]
[1742219478611,0.0001,127.49,127.48,28.58964221]
[1742219479487,0.0001,127.49,127.48,109.38964221]
[1742219479696,0.0001,127.49,127.48,118.6728333]
[1742219479896,7.98106157,127.57,127.49,7.8437]
[1742219480091,28.58964221,127.55,127.5,36.82964221]
[1742219480392,28.73180378,127.56,127.51,28.58964221]
[1742219480593,28.58964221,127.53,127.5,89.04]
[1742219480803,28.58964221,127.53,127.5,8.24]
[1742219481029,28.58964221,127.51,127.47,16.0848]
[1742219481196,20.0,127.54,127.48,28.58964221]
[1742219481401,20.0,127.54,127.49,28.58964221]
[1742219481610,48.58964221,127.54,127.47,35.6972]
[1742219481813,20.0,127.54,127.49,28.58964221]
[1742219482014,20.0,127.54,127.47,35.6972]
[1742219482015,20.0,127.54,127.5,28.58964221]
[1742219482318,28.58964221,127.55,127.5,28.58964221]
[1742219482519,28.58964221,127.54,127.49,28.58964221]
[1742219482927,28.58964221,127.54,127.47,116.4972]
[1742219483124,28.58964221,127.55,127.5,28.58964221]
[1742219484108,28.58964221,127.54,127.49,36.43294221]
[1742219484312,28.58964221,127.54,127.49,7.8433]
[1742219484511,28.58964221,127.53,127.49,7.8433]
[1742219485024,28.58964221,127.54,127.49,36.43294221]
[1742219485223,28.58964221,127.52,127.48,7.8438]
[1742219485811,28.58964221,127.5,127.47,80.8]
[1742219486016,0.14216157,127.53,127.46,7.8455]
[1742219486017,48.58964221,127.51,127.46,7.8455]
[1742219486343,28.58964221,127.5,127.46,7.8455]
[1742219486541,28.58964221,127.5,127.46,16.0655]
[1742219486708,48.58964221,127.51,127.46,16.0655]
[1742219487024,28.58964221,127.48,127.43,7.8474]
[1742219487332,28.58964221,127.48,127.43,44.67704221]
[1742219487517,28.58964221,127.49,127.44,28.58964221]
[1742219487714,28.58964221,127.48,127.43,16.0874]
[1742219487907,28.58964221,127.47,127.43,8.24]
[1742219488108,28.58964221,127.48,127.43,44.67704221]
[1742219488517,7.98536157,127.5,127.43,8.24]
[1742219488518,28.58964221,127.47,127.43,8.24]
[1742219488826,28.58964221,127.47,127.42,117.23744221]
[1742219489029,28.58964221,127.43,127.38,88.6501]
[1742219489229,28.58964221,127.42,127.38,88.6501]
[1742219489420,28.58964221,127.41,127.38,80.8]
[1742219489627,28.58964221,127.41,127.37,16.091]
[1742219490014,28.58964221,127.41,127.36,16.0917]
[1742219490235,28.58964221,127.41,127.36,44.68134221]
[1742219490413,28.58964221,127.42,127.37,28.58964221]
[1742219490953,28.58964221,127.41,127.36,44.68134221]
[1742219491154,28.58964221,127.41,127.36,16.0717]
[1742219491456,28.58964221,127.4,127.36,7.8517]
[1742219491654,28.58964221,127.38,127.33,28.58964221]
[1742219491853,28.58964221,127.37,127.33,7.8534]
[1742219492520,28.58964221,127.34,127.29,109.38964221]
[1742219492724,28.58964221,127.33,127.29,80.8]
[1742219493139,28.58964221,127.34,127.29,109.38964221]
[1742219493334,28.58964221,127.34,127.29,117.24554221]
[1742219493546,0.14216157,127.37,127.31,28.58964221]
[1742219493837,28.58964221,127.36,127.31,8.22]
[1742219494139,28.58964221,127.36,127.32,7.8542]
[1742219494640,28.73180378,127.37,127.32,36.44384221]
[1742219494832,28.58964221,127.38,127.33,28.58964221]
[1742219495335,236.33180378,127.4,127.34,28.58964221]
[1742219495523,8.22,127.42,127.36,28.58964221]
[1742219495725,0.14216157,127.42,127.36,28.58964221]
[1742219496153,28.58964221,127.41,127.37,7.8511]
[1742219496850,28.58964221,127.4,127.37,7.8511]
[1742219497030,28.58964221,127.41,127.37,7.8511]
[1742219497426,28.58964221,127.38,127.35,89.02]
[1742219497641,28.58964221,127.36,127.32,22.3177]
[1742219497833,28.58964221,127.36,127.32,96.8537]
[1742219498030,28.58964221,127.36,127.32,89.0]
[1742219498473,0.14216157,127.39,127.32,96.854]
[1742219498680,28.58964221,127.36,127.32,8.2]
[1742219498981,28.58964221,127.36,127.32,16.0542]
[1742219499140,0.14216157,127.38,127.32,16.0542]
[1742219499339,18.8,127.38,127.34,28.58964221]
[1742219499951,0.14216157,127.42,127.35,28.58964221]
[1742219500142,28.58964221,127.41,127.37,7.8511]
[1742219500940,0.28432314,127.45,127.38,28.58964221]
[1742219501176,28.58964221,127.44,127.39,28.58964221]
[1742219501339,36.49824221,127.46,127.41,28.58964221]
[1742219501541,28.58964221,127.43,127.38,80.8]
[1742219501766,28.58964221,127.41,127.36,103.1347]
[1742219501970,28.58964221,127.4,127.36,103.1347]
[1742219502141,20.0,127.42,127.38,7.8505]
[1742219502339,28.58964221,127.41,127.37,7.8509]
[1742219502653,48.58964221,127.42,127.36,131.72434221]
[1742219503262,28.58964221,127.41,127.36,131.72434221]
[1742219503563,28.58964221,127.43,127.38,28.58964221]
[1742219503940,28.73180378,127.44,127.39,28.58964221]
[1742219504637,0.063,127.46,127.4,36.78964221]
[1742219504841,28.65264221,127.46,127.41,28.58964221]
[1742219505264,36.49824221,127.46,127.4,89.0]
[1742219505454,28.65264221,127.46,127.41,28.58964221]
[1742219505852,28.65264221,127.46,127.44,28.58964221]
[1742219505853,0.063,127.46,127.44,28.58964221]
[1742219506059,0.063,127.46,127.44,36.78964221]
[1742219506462,0.063,127.46,127.44,8.2]
[1742219507466,0.063,127.46,127.44,16.0466]
[1742219507650,0.063,127.46,127.44,8.2]
[1742219507974,0.063,127.46,127.44,16.0468]
[1742219508272,0.063,127.46,127.44,36.78964221]
[1742219508852,0.063,127.46,127.44,8.2]
[1742219509178,0.063,127.46,127.44,44.63624221]
[1742219509757,0.063,127.46,127.44,8.2]
[1742219509977,0.063,127.46,127.44,16.0466]
[1742219510274,0.063,127.46,127.44,16.0467]
[1742219510674,0.063,127.46,127.44,8.2]
[1742219510866,0.063,127.46,127.44,16.0466]
[1742219511066,0.063,127.46,127.44,8.2]
[1742219511581,0.063,127.46,127.44,16.0467]
[1742219513182,0.063,127.46,127.44,44.63634221]
[1742219513562,0.063,127.46,127.44,16.0467]
[1742219513976,0.063,127.46,127.44,44.63634221]
[1742219514985,1.5748,127.54,127.45,56.05134221]
[1742219515188,28.58964221,127.54,127.49,28.58964221]
[1742219515367,28.58964221,127.54,127.49,117.52964221]
[1742219515687,28.58964221,127.55,127.5,28.58964221]
[1742219515888,36.42974221,127.55,127.5,28.58964221]
[1742219516064,28.58964221,127.55,127.5,109.38964221]
[1742219516680,28.58964221,127.54,127.5,80.8]
[1742219517393,36.43034221,127.54,127.5,80.8]
[1742219518871,28.58964221,127.53,127.5,80.8]
[1742219519094,28.58964221,127.52,127.5,80.8]
[1742219519300,36.43214221,127.51,127.5,80.8]
[1742219519593,28.58964221,127.53,127.48,28.58964221]
[1742219520396,48.58964221,127.54,127.49,28.58964221]
[1742219520568,28.58964221,127.54,127.49,28.58964221]
[1742219521089,28.58964221,127.56,127.51,28.58964221]
[1742219521271,28.58964221,127.56,127.51,36.70964221]
[1742219521469,20.063,127.57,127.52,36.43154221]
[1742219521689,28.58964221,127.56,127.52,88.6419]
[1742219521875,28.65264221,127.57,127.52,88.6419]
[1742219522068,0.063,127.57,127.52,117.23154221]
[1742219522263,0.063,127.57,127.52,88.6419]
[1742219522264,28.58964221,127.56,127.52,88.6419]
[1742219522500,28.65264221,127.57,127.52,117.23154221]
[1742219522902,0.063,127.57,127.55,28.58964221]
[1742219523200,0.063,127.57,127.56,38.25691091]
[1742219523369,0.063,127.57,127.56,209.63028291]
[1742219523569,0.063,127.57,127.56,208.06301421]
[1742219523967,0.063,127.58,127.57,106.146372]
[1742219524287,0.063,127.58,127.57,136.30276217]
[1742219524489,0.063,127.58,127.57,115.80204221]
[1742219525003,0.063,127.58,127.57,136.30293552]
[1742219525298,0.2,127.65,127.61,20.14216157]
[1742219525470,0.2,127.65,127.64,28.58964221]
[1742219525668,0.2,127.65,127.64,109.32664221]
[1742219526602,0.2,127.65,127.64,80.737]
[1742219526767,0.2,127.65,127.64,109.32664221]
[1742219527700,0.2,127.65,127.64,117.16114221]
[1742219527913,0.2,127.65,127.64,80.737]
[1742219530003,28.78964221,127.65,127.64,80.737]
[1742219530910,28.78964221,127.65,127.62,8.16]
[1742219531214,0.2,127.65,127.62,8.16]
[1742219531394,28.78964221,127.65,127.62,8.16]
[1742219531590,0.2,127.65,127.62,8.16]
[1742219531794,0.2,127.65,127.62,117.48664221]
[1742219531995,0.2,127.65,127.63,28.58964221]
[1742219532507,0.2,127.65,127.62,88.897]
[1742219532698,28.58964221,127.64,127.6,88.917]
[1742219532903,0.2,127.65,127.61,28.58964221]
[1742219533208,0.2,127.65,127.62,28.58964221]
[1742219533402,0.2,127.65,127.61,80.737]
[1742219533585,0.2,127.65,127.61,117.16274221]
[1742219534227,28.78964221,127.65,127.61,88.5731]
[1742219534718,0.2,127.65,127.61,117.16274221]
[1742219535296,28.58964221,127.64,127.6,16.0167]
[1742219535509,28.58964221,127.64,127.6,8.18]
[1742219535697,28.58964221,127.63,127.6,8.18]
[1742219535898,28.58964221,127.63,127.59,88.5743]
[1742219536306,28.58964221,127.61,127.57,88.897]
[1742219536497,28.58964221,127.6,127.57,80.737]
[1742219536698,28.58964221,127.59,127.55,96.7368]
[1742219537007,28.58964221,127.58,127.55,8.16]
[1742219537197,28.58964221,127.58,127.54,7.8404]
[1742219537396,28.58964221,127.58,127.53,88.578]
[1742219537596,28.58964221,127.57,127.52,44.59124221]
[1742219537797,28.58964221,127.57,127.52,125.32824221]
[1742219538599,34.79494221,127.6,127.54,28.58964221]
[1742219538802,28.58964221,127.59,127.54,28.58964221]
[1742219539213,28.58964221,127.61,127.56,28.58964221]
[1742219539533,7.8353,127.63,127.56,28.58964221]
[1742219539815,28.58964221,127.61,127.57,7.8388]
[1742219540718,28.58964221,127.63,127.58,28.58964221]
[1742219540914,28.58964221,127.63,127.57,125.30544221]
[1742219541218,28.58964221,127.61,127.57,88.877]
[1742219541427,28.58964221,127.61,127.56,0.03]
[1742219541601,28.58964221,127.61,127.56,36.45894221]
[1742219541916,28.58964221,127.59,127.56,0.03]
[1742219542102,7.836,127.62,127.56,0.03]
[1742219542103,28.58964221,127.58,127.56,0.03]
[1742219543102,28.58964221,127.59,127.56,0.03]
[1742219543709,36.42734221,127.59,127.56,0.03]
[1742219544106,8.203,127.63,127.56,28.61964221]
[1742219544421,28.58964221,127.62,127.56,109.35664221]
[1742219544621,28.58964221,127.62,127.57,28.58964221]
[1742219544823,28.65264221,127.63,127.58,28.58964221]
[1742219545006,0.063,127.63,127.6,28.58964221]
[1742219545206,0.063,127.63,127.62,28.58964221]
[1742219545520,0.063,127.63,127.62,36.72964221]
[1742219545721,0.063,127.63,127.62,44.56534221]
[1742219546325,0.063,127.63,127.62,125.30234221]
[1742219546517,0.063,127.63,127.62,126.86885454]
[1742219547016,0.063,127.63,127.62,125.30234221]
[1742219547419,0.2,127.65,127.64,28.58964221]
[1742219547610,0.2,127.65,127.64,109.32664221]
[1742219547812,0.2,127.65,127.64,136.09511421]
[1742219548318,0.063,127.7,127.65,18.933972]
[1742219548523,0.063,127.7,127.69,28.58964221]
[1742219548910,0.063,127.7,127.68,28.58964221]
[1742219549229,0.063,127.7,127.69,28.58964221]
[1742219549619,0.063,127.7,127.68,28.58964221]
[1742219549930,0.063,127.7,127.68,117.15814221]
[1742219550123,0.063,127.7,127.68,80.737]
[1742219550324,0.063,127.7,127.68,109.32664221]
[1742219550712,0.063,127.7,127.69,28.58964221]
[1742219551115,0.063,127.7,127.69,128.26061421]
[1742219551338,0.063,127.7,127.69,193.7683561]
[1742219551541,0.063,127.7,127.69,192.20277578]
[1742219551718,0.063,127.7,127.69,192.06061421]
[1742219551912,0.063,127.7,127.69,180.95804221]
[1742219552427,0.063,127.7,127.69,199.89201421]
[1742219553839,0.063,127.7,127.69,173.12664221]
[1742219554415,0.063,127.7,127.69,180.95804221]
[1742219554824,0.063,127.7,127.66,80.737]
[1742219555034,0.063,127.7,127.67,8.12]
[1742219555235,28.65264221,127.7,127.67,80.737]
[1742219555533,28.65264221,127.7,127.66,8.12]
[1742219555725,28.65264221,127.7,127.66,15.9531]
[1742219555921,0.063,127.7,127.66,15.9531]
[1742219556129,20.063,127.7,127.66,44.54274221]
[1742219556341,0.063,127.7,127.68,28.58964221]
[1742219556726,0.063,127.7,127.68,109.32664221]
[1742219557129,0.063,127.7,127.68,80.737]
[1742219557337,28.65264221,127.7,127.66,8.12]
[1742219557842,20.063,127.7,127.66,44.54274221]
[1742219558649,0.063,127.7,127.67,28.58964221]
[1742219559028,28.65264221,127.7,127.65,44.52334221]
[1742219559943,36.48374221,127.7,127.65,44.52334221]
[1742219560318,28.58964221,127.67,127.64,80.737]
[1742219560620,28.58964221,127.66,127.64,80.737]
[1742219561441,28.58964221,127.66,127.6,88.5737]
[1742219561643,28.58964221,127.66,127.61,36.66964221]
[1742219562265,28.58964221,127.66,127.62,7.8357]
[1742219563019,28.58964221,127.67,127.62,7.8357]
[1742219563631,28.58964221,127.66,127.61,15.9161]
[1742219563927,0.14216157,127.68,127.62,28.58964221]
[1742219564125,28.58964221,127.67,127.61,35.507]
[1742219564326,28.73180378,127.68,127.63,7.8351]
[1742219564538,28.58964221,127.67,127.62,88.5725]
[1742219564739,28.58964221,127.67,127.62,117.16214221]
[1742219565727,28.58964221,127.67,127.62,125.26214221]
[1742219566835,28.58964221,127.68,127.62,125.29214221]
[1742219567034,28.58964221,127.68,127.62,144.88154221]
[1742219567353,48.58964221,127.69,127.63,28.58964221]
[1742219567530,28.58964221,127.69,127.63,28.58964221]
[1742219567730,0.063,127.7,127.65,28.58964221]
[1742219567930,0.063,127.7,127.66,8.08]
[1742219568132,28.65264221,127.7,127.66,8.08]
[1742219568338,28.58964221,127.69,127.66,8.08]
[1742219568739,0.063,127.7,127.66,15.9133]
[1742219568939,28.58964221,127.69,127.66,15.9133]
[1742219569329,28.58964221,127.69,127.66,8.08]
[1742219569544,0.063,127.7,127.67,6.466]
[1742219569764,0.063,127.7,127.69,28.58964221]
[1742219569952,0.063,127.7,127.67,28.58964221]
[1742219570253,0.063,127.7,127.66,125.23984221]
[1742219570646,0.063,127.7,127.67,28.58964221]
[1742219570843,0.063,127.7,127.68,7.832]
[1742219571961,0.063,127.7,127.68,36.42164221]
[1742219572832,0.063,127.7,127.68,7.832]
[1742219573248,0.063,127.7,127.69,8.02]
[1742219573443,0.063,127.7,127.68,88.569]
[1742219573738,0.063,127.7,127.68,96.589]
[1742219578148,0.063,127.7,127.68,125.17864221]
[1742219578946,0.063,127.7,127.68,96.589]
[1742219579262,0.063,127.7,127.68,125.17864221]
[1742219579877,0.063,127.7,127.69,28.58964221]
[1742219580050,0.0001,127.7,127.69,28.58964221]
[1742219580244,0.0001,127.7,127.69,36.42104221]
[1742219580445,0.0001,127.71,127.7,18.933972]
[1742219580762,0.0001,127.71,127.7,129.96809225]
[1742219581366,0.0001,127.71,127.7,128.26061421]
[1742219582356,0.0001,127.71,127.7,137.79899342]
[1742219582870,0.0001,127.71,127.7,136.09141421]
[1742219583368,0.0001,127.71,127.7,88.5678]
[1742219583546,0.0001,127.71,127.68,7.8318]
[1742219583747,0.0001,127.71,127.7,28.58964221]
[1742219584161,0.0001,127.71,127.69,28.58964221]
[1742219584476,0.0001,127.71,127.68,27.412]
[1742219584665,0.0001,127.71,127.7,28.58964221]
[1742219584862,0.0001,127.71,127.69,28.58964221]
[1742219585069,0.0001,127.71,127.7,7.94]
[1742219585743,0.0001,127.71,127.7,36.52964221]
[1742219586075,0.0001,127.71,127.7,7.94]
[1742219586474,0.0001,127.71,127.68,36.42134221]
[1742219586668,0.0001,127.71,127.69,28.58964221]
[1742219587388,0.0001,127.71,127.7,28.58964221]
[1742219587684,0.0001,127.71,127.69,109.32664221]
[1742219588053,0.0001,127.71,127.7,28.58964221]
[1742219588477,0.0001,127.71,127.7,7.8308]